[Event "Championnat du monde jeunes U10F"]
[Date "2024.11.15"]
[White "Berikkyzy Alanna"]
[Black "Giss, Annika"]
[WhiteElo "2043"]
[BlackElo "1586"]
[Round "1.1"]
[Result "1-0"]
[TimeControl "5400+30"]

1. e4 {[%clk 1:30:45]} 1... c5 2. Nf3 {[%clk 1:30:59]} 2... Nc6 {[%clk 1:31:05]}
3. d4 {[%clk 1:30:55]} 3... cxd4 {[%clk 1:31:20]} 4. Nxd4 {[%clk 1:31:09]} 4...
g6 {[%clk 1:31:35]} 5. Nc3 {[%clk 1:30:45]} 5... Nf6 {[%clk 1:31:36]} 6. Be3
{[%clk 1:30:37]} 6... Bg7 {[%clk 1:31:38]} 7. Nxc6 {[%clk 1:30:10]} 7... bxc6
{[%clk 1:31:42]} 8. e5 {[%clk 1:29:46]} 8... Ng8 9. f4 Nh6 {[%clk 1:28:58]} 10.
Bd3 {[%clk 1:27:56]} 10... O-O {[%clk 1:28:38]} 11. O-O {[%clk 1:26:36]} 11...
Qc7 {[%clk 1:22:31]} 12. Qf3 {[%clk 1:26:39]} 12... Bb7 {[%clk 1:21:35]} 13. Qh3
{[%clk 1:24:27]} 13... Rfd8 14. f5 {[%clk 1:21:42]} 14... Nxf5 {[%clk 1:14:48]}
15. Bxf5 {[%clk 1:20:58]} 15... gxf5 {[%clk 1:11:47]} 16. Rxf5 {[%clk 1:20:30]}
16... e6 {[%clk 1:05:08]} 17. Rg5 {[%clk 1:19:17]} 17... Kf8 {[%clk 1:04:32]}
18. Bc5+ {[%clk 1:29:39]} 1-0

[Variant "Standard"]
[Site "Europe Echecs"]

[Event "Championnat du monde jeunes U10F"]
[Date "2024.11.15"]
[White "Yi, Ruiyu"]
[Black "Yunker, Alisa Genrietta"]
[WhiteElo "1571"]
[BlackElo "1872"]
[Round "1.2"]
[Result "0-1"]
[TimeControl "5400+30"]

1. d4 Nf6 2. c4 c6 3. Nc3 d5 4. Nf3 dxc4 5. a4 Bf5 6. e3 e6 7. Bxc4 Bb4 8. O-O
O-O 9. Bd3 Bxd3 10. Qxd3 c5 11. Rd1 Nc6 12. Qe2 Qe7 13. Na2 Ba5 14. dxc5 Qxc5
15. Bd2 Rad8 16. Bc1 Ra8 17. Bd2 Rad8 18. Rac1 Qb6 19. Bxa5 Qxa5 20. Nc3 Qb6 21.
Na2 Qa5 22. Nc3 Qb6 23. Na2 Qa5 24. Nc3 Qb6 25. Na2 Qa5 26. Nc3 Qb6 27. Na2 Qa5
28. Nc3 Qb4 29. Na2 Qa5 30. Nc3 Qb4 31. Na2 Qa5 32. Nc3 Qb4 33. Qb5 Qa5 34. Qe2
Qb4 35. Qb5 a6 36. Qxb4 Nxb4 37. Ne2 Nc6 38. Nc3 Nb4 39. Ne2 Nd3 40. Nc3 Nb4 41.
Ne2 Nd3 42. Ra1 Ne4 43. Rac1 Nf6 44. Ra1 Ne4 45. Rac1 Nf6 46. Ra1 Ne4 47. Rac1
Nf6 48. Ra1 Ne4 49. Rf1 Nf6 50. Rfd1 Ne4 51. Rf1 Nxb2 52. Rfb1 Nd3 53. Rf1 Nb2
54. Rfb1 Nd3 55. Rxb7 Rb8 56. Rbb1 Rbd8 57. Rb7 Rb8 58. Rbb1 Rbd8 59. Rb7 Rb8
60. Rab1 Rxb7 61. Rxb7 Ndxf2 62. Ng5 Rd8 63. Nf3 Rf8 64. Ng5 Rd8 65. Nxe4 Nxe4
66. g3 Nc5 67. Rb4 f6 68. Rc4 Rd5 69. Nc3 Re5 70. Kf2 Kf7 71. Kf3 g5 72. Rb4
Rf5+ 73. Ke2 Rf2+ 74. Kxf2 Nd3+ 75. Kf3 Nxb4 76. Ke4 Nd3 77. Kf3 Nb4 78. Ke4 Nc6
79. Kd3 f5 80. Kc4 Ke7 81. Kc5 Kd7 82. Kb6 a5 83. e4 f4 84. gxf4 gxf4 85. Ne2 e5
86. Ng1 Kd6 87. Ne2 Kd7 88. Ng1 Kd6 89. Kb5 h6 90. h3 h5 91. Kc4 Nd4 92. h4 Kc6
93. Kd3 Kc5 94. Kc3 Kd6 95. Kc4 Kc6 96. Kd3 Kc5 97. Kc3 f3 98. Nh3 Ne2+ 0-1

[Variant "Standard"]
[Site "Europe Echecs"]

[Event "Championnat du monde jeunes U10F"]
[Date "2024.11.15"]
[White "Yang, Aimee"]
[Black "Kravchuk, Daria"]
[WhiteElo "1864"]
[BlackElo "1569"]
[Round "1.3"]
[Result "1-0"]
[TimeControl "5400+30"]

1. d4 {[%clk 1:30:58]} 1... Nf6 {[%clk 1:30:52]} 2. Nf3 {[%clk 1:31:21]} 2... g6
{[%clk 1:31:05]} 3. Bf4 {[%clk 1:31:43]} 3... Bg7 {[%clk 1:31:23]} 4. e3 {[%clk
1:32:02]} 4... c5 {[%clk 1:31:46]} 5. c3 {[%clk 1:31:16]} 5... cxd4 {[%clk
1:31:26]} 6. exd4 {[%clk 1:31:34]} 6... d6 {[%clk 1:31:41]} 7. Bd3 {[%clk
1:31:51]} 7... O-O 8. O-O Re8 {[%clk 1:30:57]} 9. Re1 {[%clk 1:30:47]} 9... Nc6
{[%clk 1:29:47]} 10. h3 {[%clk 1:29:45]} 10... a6 {[%clk 1:26:56]} 11. Bh2
{[%clk 1:29:06]} 11... b6 12. Nbd2 Bb7 {[%clk 1:23:17]} 13. a3 {[%clk 1:12:38]}
13... b5 {[%clk 1:19:13]} 14. Qc2 {[%clk 1:01:40]} 14... Rc8 {[%clk 1:17:37]}
15. Rad1 b4 16. Qb3 {[%clk 0:59:20]} 16... Rf8 {[%clk 1:31:26]} 17. Qc2 {[%clk
1:01:42]} 17... Re8 18. Qb3 a5 {[%clk 1:02:42]} 19. Ne4 {[%clk 0:53:18]} 19...
Nxe4 {[%clk 0:56:12]} 20. Bxe4 {[%clk 0:53:32]} 20... a4 {[%clk 0:56:27]} 21.
Qxa4 {[%clk 0:53:19]} 21... bxc3 {[%clk 0:55:59]} 22. bxc3 {[%clk 0:53:45]}
22... Qc7 {[%clk 0:54:59]} 23. Rb1 {[%clk 0:51:41]} 23... Qd8 {[%clk 0:55:59]}
24. Rbd1 {[%clk 0:53:45]} 24... Qc7 25. Rb1 {[%clk 1:14:34]} 25... Qd8 {[%clk
0:55:59]} 26. Rbd1 {[%clk 0:53:45]} 26... Qc7 27. Rb1 {[%clk 1:01:42]} 27... Qd8
{[%clk 0:55:59]} 28. Rbd1 {[%clk 0:53:45]} 28... Qc7 29. Rb1 {[%clk 0:51:13]}
29... e6 30. Bxd6 {[%clk 0:45:58]} 30... Qxd6 {[%clk 0:47:40]} 31. Rxb7 {[%clk
0:45:12]} 31... Ne7 {[%clk 0:44:16]} 32. Qb3 {[%clk 0:43:54]} 32... Nc6 33. Qa4
{[%clk 0:45:12]} 33... Ne7 {[%clk 0:44:16]} 34. Qb3 Rb8 {[%clk 0:43:20]} 35. Qa4
{[%clk 0:45:12]} 35... Rbc8 {[%clk 0:44:16]} 36. Qb3 Rb8 37. a4 {[%clk 0:42:14]}
37... f5 {[%clk 0:41:58]} 38. Bd3 {[%clk 0:40:10]} 38... Nd5 {[%clk 0:41:34]}
39. Bc4 {[%clk 0:38:09]} 39... Rxb7 {[%clk 0:36:08]} 40. Qxb7 {[%clk 0:36:28]}
40... Re7 {[%clk 0:33:40]} 41. Qa8+ {[%clk 0:36:04]} 41... Re8 {[%clk 0:36:08]}
42. Qb7 Re7 {[%clk 0:33:40]} 43. Qa8+ {[%clk 0:36:04]} 43... Bf8 {[%clk
0:32:11]} 44. Qb7 {[%clk 0:36:28]} 44... Bg7 {[%clk 0:33:40]} 45. Qa8+ {[%clk
0:36:04]} 45... Bf8 46. a5 {[%clk 0:34:54]} 46... Nxc3 {[%clk 0:29:11]} 47. Ng5
{[%clk 0:32:31]} 47... Qxd4 {[%clk 0:25:00]} 48. Nxe6 {[%clk 0:32:22]} 48...
Rxe6 {[%clk 0:25:00]} 49. Bxe6+ {[%clk 0:32:44]} 49... Kg7 {[%clk 0:25:08]} 50.
Qb7+ {[%clk 0:32:14]} 50... Kh6 {[%clk 0:25:14]} 51. Qf3 {[%clk 0:30:51]} 51...
f4 {[%clk 0:23:12]} 52. Rc1 {[%clk 0:29:18]} 52... Bb4 {[%clk 0:22:39]} 53. Re1
{[%clk 0:30:51]} 53... Bf8 {[%clk 0:23:12]} 54. Rc1 {[%clk 0:29:18]} 54... Bb4
55. a6 {[%clk 0:29:23]} 55... Nb5 {[%clk 0:14:47]} 56. Rd1 {[%clk 0:23:13]}
56... Nc3 {[%clk 0:22:39]} 57. Rc1 {[%clk 0:29:23]} 57... Nb5 {[%clk 0:14:47]}
58. Rd1 {[%clk 0:23:13]} 58... Nc3 {[%clk 0:22:39]} 59. Rc1 {[%clk 0:29:23]}
59... Nb5 {[%clk 0:14:47]} 60. Rd1 {[%clk 0:23:13]} 60... Nc3 {[%clk 0:22:39]}
61. Rc1 {[%clk 0:29:23]} 61... Nb5 {[%clk 0:14:47]} 62. Rd1 Qf6 {[%clk 0:12:20]}
63. Rc1 {[%clk 0:29:23]} 63... Qd4 {[%clk 0:14:47]} 64. Rd1 Qf6 65. Bc4 {[%clk
0:22:16]} 65... Nd4 {[%clk 0:11:30]} 66. Qd5 {[%clk 0:21:25]} 66... Nc6 {[%clk
0:10:11]} 67. Qe6 {[%clk 0:21:36]} 67... Qxe6 {[%clk 0:09:48]} 68. Bxe6 {[%clk
0:22:01]} 68... Bc5 {[%clk 0:09:51]} 69. Rd7 {[%clk 0:22:21]} 69... Bb4 {[%clk
0:09:48]} 70. Rd1 {[%clk 0:22:01]} 70... Bc5 {[%clk 0:09:51]} 71. Rd7 Kg5 {[%clk
0:08:02]} 72. Rc7 {[%clk 0:22:31]} 72... Kf6 {[%clk 0:07:09]} 73. Rd7 {[%clk
0:22:21]} 73... Kg5 {[%clk 0:08:02]} 74. Rc7 {[%clk 0:22:31]} 74... Kf6 {[%clk
0:07:09]} 75. Rxc6 {[%clk 0:22:52]} 75... Bd4 {[%clk 0:07:18]} 76. Bb3+ {[%clk
0:23:13]} 76... Ke5 {[%clk 0:07:40]} 77. Rc7 {[%clk 0:23:29]} 1-0

[Variant "Standard"]
[Site "Europe Echecs"]

[Event "Championnat du monde jeunes U10F"]
[Date "2024.11.15"]
[White "Mukhorina, Mariya Dm"]
[Black "Tselmuun, Ider"]
[WhiteElo "1567"]
[BlackElo "1846"]
[Round "1.4"]
[Result "1/2-1/2"]
[TimeControl "5400+30"]

1. e4 {[%clk 1:30:56]} 1... c5 {[%clk 1:30:53]} 2. c3 {[%clk 1:31:21]} 2... e6
{[%clk 1:30:33]} 3. d4 cxd4 {[%clk 1:30:49]} 4. cxd4 {[%clk 1:26:13]} 4... d5 5.
exd5 {[%clk 1:21:24]} 5... Qxd5 {[%clk 1:31:15]} 6. Nc3 {[%clk 1:21:20]} 6...
Qd8 {[%clk 1:31:20]} 7. d5 a6 {[%clk 1:26:53]} 8. Qa4+ {[%clk 1:11:16]} 8... Bd7
{[%clk 1:25:31]} 9. Qb3 {[%clk 1:06:40]} 9... b5 {[%clk 1:25:23]} 10. a3 {[%clk
0:52:49]} 10... Nf6 {[%clk 1:19:49]} 11. Bg5 {[%clk 0:46:55]} 11... Be7 {[%clk
1:18:53]} 12. Nf3 {[%clk 0:26:28]} 12... O-O {[%clk 1:13:28]} 13. d6 {[%clk
0:19:41]} 13... Bxd6 {[%clk 1:13:23]} 14. Bxf6 Qxf6 {[%clk 1:13:38]} 15. Ne4
{[%clk 0:19:07]} 15... Qe7 {[%clk 1:13:54]} 16. Nxd6 {[%clk 0:19:29]} 16... Qxd6
{[%clk 1:14:18]} 17. Be2 {[%clk 0:19:32]} 17... Bc6 {[%clk 1:13:12]} 18. O-O
{[%clk 0:19:34]} 18... Bd5 {[%clk 1:13:08]} 19. Qd3 {[%clk 0:19:11]} 19... Qe7
{[%clk 1:13:27]} 20. Rfe1 {[%clk 0:17:03]} 20... Nd7 {[%clk 1:13:42]} 21. Bf1
{[%clk 0:17:00]} 21... Qf6 {[%clk 1:14:05]} 22. b4 Rac8 {[%clk 1:08:34]} 23.
Rac1 {[%clk 0:09:55]} 23... Nb6 {[%clk 1:06:19]} 24. Qe3 {[%clk 0:08:26]} 24...
Bxf3 {[%clk 1:06:03]} 25. Qxb6 {[%clk 0:07:29]} 25... Rxc1 {[%clk 0:59:10]} 26.
Rxc1 {[%clk 0:07:48]} 26... Qb2 {[%clk 0:59:34]} 27. Qe3 {[%clk 0:07:53]} 27...
Bd5 {[%clk 0:59:48]} 28. g3 {[%clk 0:06:07]} 28... h6 {[%clk 0:58:44]} 29. Bg2
{[%clk 0:06:21]} 29... Bc4 {[%clk 0:57:12]} 30. Bb7 {[%clk 0:04:41]} 30... Rd8
{[%clk 0:57:08]} 31. Be4 {[%clk 0:02:25]} 31... f5 {[%clk 0:53:59]} 32. Bb1
{[%clk 0:02:17]} 32... Rd2 {[%clk 0:47:49]} 33. Rxc4 {[%clk 0:00:41]} 33...
Qxb1+ {[%clk 0:44:50]} 34. Kg2 {[%clk 0:01:08]} 34... bxc4 {[%clk 0:45:11]} 35.
Qxd2 {[%clk 0:01:18]} 35... Qe4+ {[%clk 0:43:05]} 36. Kg1 {[%clk 0:01:24]} 36...
Qd3 {[%clk 0:42:54]} 37. Qxd3 {[%clk 0:00:57]} 37... cxd3 {[%clk 0:43:10]} 38.
Kf1 {[%clk 0:01:25]} 38... Kf7 {[%clk 0:43:35]} 39. f4 {[%clk 0:01:29]} 39...
Ke7 {[%clk 0:43:46]} 40. Ke1 {[%clk 0:01:53]} 40... Kd6 {[%clk 0:44:01]} 41. Kd2
{[%clk 0:02:17]} 41... e5 {[%clk 0:44:23]} 42. fxe5+ {[%clk 0:02:18]} 42... Kxe5
{[%clk 0:44:47]} 43. Kxd3 {[%clk 0:02:43]} 43... Kd5 44. a4 {[%clk 0:02:23]}
44... g6 {[%clk 0:45:25]} 45. b5 {[%clk 0:01:58]} 45... axb5 {[%clk 0:45:42]}
46. axb5 {[%clk 0:02:27]} 46... g5 {[%clk 0:24:55]} 47. b6 {[%clk 0:02:36]}
47... Kc6 {[%clk 0:25:20]} 48. Kd4 {[%clk 0:02:52]} 48... Kxb6 {[%clk 0:22:35]}
49. Ke5 {[%clk 0:03:15]} 49... f4 {[%clk 0:22:51]} 50. gxf4 {[%clk 0:03:37]}
50... gxf4 {[%clk 0:23:18]} 51. Kxf4 {[%clk 0:04:04]} 51... Kc6 {[%clk 0:23:38]}
52. Kf5 {[%clk 0:04:25]} 52... Kd6 {[%clk 0:24:04]} 53. Kg6 {[%clk 0:04:48]}
53... Ke6 {[%clk 0:24:31]} 54. Kxh6 {[%clk 0:05:08]} 54... Kf6 {[%clk 0:24:57]}
55. h4 {[%clk 0:05:21]} 55... Kf7 {[%clk 0:25:24]} 56. Kh7 {[%clk 0:05:27]}
56... Kf8 {[%clk 0:25:47]} 57. h5 {[%clk 0:05:49]} 57... Kf7 {[%clk 0:26:13]}
58. h6 {[%clk 0:05:57]} 58... Kf8 {[%clk 0:26:38]} 59. Kg6 {[%clk 0:06:08]}
59... Kg8 {[%clk 0:27:04]} 60. h7+ {[%clk 0:06:30]} 60... Kh8 {[%clk 0:27:31]}
61. Kh6 {[%clk 0:06:53]} 1/2-1/2

[Variant "Standard"]
[Site "Europe Echecs"]

[Event "Championnat du monde jeunes U10F"]
[Date "2024.11.15"]
[White "Wang, Mi Ya Mia"]
[Black "Rosset, Anna"]
[WhiteElo "1552"]
[BlackElo "1814"]
[Round "1.6"]
[Result "1-0"]
[TimeControl "5400+30"]

1. e4 {[%clk 1:30:59]} 1... e6 {[%clk 1:30:56]} 2. d4 {[%clk 1:31:20]} 2... d5
{[%clk 1:31:21]} 3. e5 {[%clk 1:31:44]} 3... c5 {[%clk 1:31:46]} 4. c3 {[%clk
1:32:07]} 4... Nc6 {[%clk 1:32:10]} 5. Nf3 {[%clk 1:32:27]} 5... Bd7 {[%clk
1:32:29]} 6. a3 {[%clk 1:32:17]} 6... f6 7. exf6 {[%clk 1:26:51]} 7... Nxf6
{[%clk 1:30:20]} 8. Be3 {[%clk 1:23:34]} 8... c4 {[%clk 1:23:31]} 9. Nbd2 {[%clk
1:22:28]} 9... Bd6 {[%clk 1:20:48]} 10. Be2 {[%clk 1:20:23]} 10... Na5 {[%clk
1:13:46]} 11. O-O {[%clk 1:19:12]} 11... O-O {[%clk 1:13:07]} 12. Bg5 {[%clk
1:16:36]} 12... Qc7 {[%clk 1:06:45]} 13. h3 {[%clk 1:12:41]} 13... Rae8 {[%clk
0:58:31]} 14. Re1 {[%clk 1:10:08]} 14... Bc6 {[%clk 0:52:19]} 15. Bxf6 {[%clk
1:01:25]} 15... Rxf6 {[%clk 0:51:32]} 16. Qc2 {[%clk 0:59:17]} 16... Qd7 {[%clk
0:45:52]} 17. Bd1 {[%clk 0:51:56]} 17... Rg6 {[%clk 0:43:20]} 18. Ne5 {[%clk
0:50:52]} 18... Bxe5 {[%clk 0:43:28]} 19. Rxe5 {[%clk 0:49:56]} 19... Rf8 {[%clk
0:41:42]} 20. Bg4 {[%clk 0:46:10]} 20... Qd6 {[%clk 0:23:38]} 21. Rae1 {[%clk
0:44:17]} 21... Bd7 {[%clk 0:21:43]} 22. Nf3 {[%clk 0:43:24]} 22... Nc6 {[%clk
0:18:44]} 23. R5e3 {[%clk 0:38:57]} 23... Bc8 {[%clk 0:09:45]} 24. Ne5 {[%clk
0:35:55]} 24... Nxe5 {[%clk 0:06:35]} 25. Rxe5 {[%clk 0:36:13]} 25... Rgf6
{[%clk 0:05:45]} 26. Qe2 {[%clk 0:35:46]} 26... Rxf2 {[%clk 0:03:40]} 27. Qxf2
{[%clk 0:36:02]} 27... Rxf2 {[%clk 0:04:05]} 28. Kxf2 {[%clk 0:36:24]} 28... Qb6
{[%clk 0:02:31]} 29. R1e2 {[%clk 0:36:23]} 29... Kf7 {[%clk 0:01:57]} 30. Bh5+
{[%clk 0:35:43]} 30... g6 {[%clk 0:02:12]} 31. Bg4 {[%clk 0:36:07]} 31... h5
{[%clk 0:02:11]} 32. Bf3 {[%clk 0:36:27]} 32... Qb3 {[%clk 0:01:25]} 33. g4
{[%clk 0:34:55]} 33... h4 {[%clk 0:01:14]} 34. g5 {[%clk 0:34:33]} 34... a5
{[%clk 0:01:30]} 35. Bg4 {[%clk 0:34:31]} 35... Qb6 {[%clk 0:01:56]} 36. Kf3
{[%clk 0:34:31]} 36... Qd6 {[%clk 0:02:06]} 37. Kf4 {[%clk 0:34:17]} 37... b5
{[%clk 0:02:07]} 38. Kf3 {[%clk 0:33:05]} 38... Bd7 {[%clk 0:02:10]} 39. R2e3
{[%clk 0:31:45]} 39... Bc8 {[%clk 0:01:19]} 40. Kf4 {[%clk 0:30:42]} 40... Bd7
{[%clk 0:01:04]} 41. Bf3 {[%clk 0:30:17]} 41... b4 {[%clk 0:00:37]} 42. axb4
{[%clk 0:30:29]} 42... axb4 {[%clk 0:01:04]} 1-0

[Variant "Standard"]
[Site "Europe Echecs"]

[Event "Championnat du monde jeunes U10F"]
[Date "2024.11.15"]
[White "Nandinjiguur, Chinzorig"]
[Black "Saltkhutsishvili, Sara"]
[WhiteElo "1807"]
[BlackElo "1546"]
[Round "1.7"]
[Result "1-0"]
[TimeControl "5400+30"]

1. d4 {[%clk 1:30:47]} 1... d5 {[%clk 1:30:21]} 2. c4 {[%clk 1:31:07]} 2... e6
{[%clk 1:29:36]} 3. Nc3 {[%clk 1:31:15]} 3... Be7 {[%clk 1:29:04]} 4. Nf3 {[%clk
1:31:19]} 4... Nf6 {[%clk 1:28:48]} 5. Bg5 {[%clk 1:31:31]} 5... h6 {[%clk
1:28:14]} 6. Bh4 {[%clk 1:31:33]} 6... O-O {[%clk 1:27:53]} 7. e3 {[%clk
1:31:33]} 7... Ne4 {[%clk 1:27:55]} 8. Bxe7 {[%clk 1:25:44]} 8... Qxe7 {[%clk
1:27:17]} 9. Nxe4 {[%clk 1:25:02]} 9... dxe4 {[%clk 1:26:41]} 10. Nd2 {[%clk
1:25:18]} 10... f5 {[%clk 1:26:05]} 11. Be2 {[%clk 1:25:24]} 11... b6 {[%clk
1:23:01]} 12. O-O {[%clk 1:24:44]} 12... Bb7 {[%clk 1:22:30]} 13. f3 {[%clk
1:22:51]} 13... Nd7 {[%clk 1:19:24]} 14. fxe4 {[%clk 1:19:24]} 14... fxe4 {[%clk
1:13:33]} 15. Qc2 {[%clk 1:12:57]} 15... Nf6 {[%clk 1:09:36]} 16. c5 {[%clk
1:09:38]} 16... bxc5 {[%clk 1:06:55]} 17. dxc5 {[%clk 1:08:59]} 17... Nd5 {[%clk
1:04:40]} 18. c6 {[%clk 0:55:48]} 18... Nb4 {[%clk 1:00:47]} 19. Qxe4 {[%clk
0:55:22]} 19... Bxc6 {[%clk 1:00:35]} 20. Qe5 {[%clk 0:52:38]} 20... Qd6 {[%clk
0:57:33]} 21. Nc4 {[%clk 0:44:30]} 21... Qxe5 {[%clk 0:57:21]} 22. Nxe5 Be4
{[%clk 0:55:34]} 23. Bc4 {[%clk 0:41:20]} 23... Rfe8 {[%clk 0:52:07]} 24. Rad1
{[%clk 0:38:33]} 24... Nc2 {[%clk 0:49:51]} 25. Bd3 {[%clk 0:29:43]} 25... Bxd3
{[%clk 0:48:23]} 26. Rxd3 {[%clk 0:29:57]} 26... Rad8 {[%clk 0:45:37]} 27. Rc3
{[%clk 0:26:47]} 27... Rd2 {[%clk 0:44:49]} 28. a3 {[%clk 0:22:16]} 28... Red8
{[%clk 0:42:31]} 29. Rc1 {[%clk 0:14:25]} 29... Nxe3 {[%clk 0:37:38]} 30. Rxe3
{[%clk 0:14:42]} 30... Rxb2 {[%clk 0:38:01]} 31. Nc4 {[%clk 0:14:17]} 31... Rb5
{[%clk 0:38:20]} 32. Rxe6 {[%clk 0:13:51]} 32... Rc5 {[%clk 0:38:33]} 33. Ree1
{[%clk 0:13:33]} 33... Rd4 {[%clk 0:38:30]} 34. Ne3 {[%clk 0:12:34]} 34... Re5
{[%clk 0:37:54]} 35. Nc2 {[%clk 0:10:54]} 35... Rxe1+ {[%clk 0:38:06]} 36. Rxe1
{[%clk 0:11:09]} 36... Rc4 {[%clk 0:38:23]} 37. Rc1 {[%clk 0:10:34]} 37... c5
{[%clk 0:38:22]} 38. Kf2 {[%clk 0:10:56]} 38... h5 {[%clk 0:37:42]} 39. Ke3
{[%clk 0:10:54]} 39... Kf7 {[%clk 0:37:10]} 40. Kd3 {[%clk 0:11:01]} 40... Rf4
{[%clk 0:37:19]} 41. Ne3 {[%clk 0:11:15]} 41... Ra4 {[%clk 0:37:34]} 42. Nc4
{[%clk 0:11:03]} 42... Kf6 {[%clk 0:37:46]} 43. Rf1+ {[%clk 0:11:23]} 43... Ke6
{[%clk 0:37:42]} 44. Re1+ {[%clk 0:11:42]} 44... Kf6 {[%clk 0:37:58]} 45. Re8
{[%clk 0:11:49]} 45... Ra6 {[%clk 0:37:33]} 46. Rc8 {[%clk 0:11:59]} 1-0

[Variant "Standard"]
[Site "Europe Echecs"]

[Event "Championnat du monde jeunes U10F"]
[Date "2024.11.15"]
[White "Guerra Mansilla, Maria Ignacia"]
[Black "Rzadkowska, Lila"]
[WhiteElo "1545"]
[BlackElo "1765"]
[Round "1.8"]
[Result "0-1"]
[TimeControl "5400+30"]

1. c4 c5 2. d3 Nc6 3. Nc3 g6 4. g3 Bg7 5. Bg2 e5 6. e4 d6 7. Nge2 Nge7 8. O-O
O-O 9. a3 a5 10. Rb1 Bg4 11. f4 Qd7 12. Bd2 Nd4 13. Qe1 Nb3 14. Qd1 a4 15. Re1
Nd4 16. Nd5 Nxd5 17. exd5 exf4 18. Bxf4 Rfe8 19. Bf1 Nf3+ 20. Kh1 Nxe1 21. Qxe1
Bf3+ 22. Kg1 Bd4+ 0-1

[Variant "Standard"]
[Site "Europe Echecs"]

[Event "Championnat du monde jeunes U10F"]
[Date "2024.11.15"]
[White "Samhita Pungavanam"]
[Black "Minasyan, Arina"]
[WhiteElo "1752"]
[BlackElo "1545"]
[Round "1.9"]
[Result "1-0"]
[TimeControl "5400+30"]

1. e4 {[%clk 1:30:53]} 1... c5 {[%clk 1:30:52]} 2. b3 {[%clk 1:30:28]} 2... a6
{[%clk 1:31:09]} 3. Bb2 {[%clk 1:29:21]} 3... d6 {[%clk 1:30:24]} 4. Nf3 {[%clk
1:28:23]} 4... Nf6 {[%clk 1:30:29]} 5. Nc3 {[%clk 1:26:53]} 5... e6 {[%clk
1:28:57]} 6. Be2 {[%clk 1:22:53]} 6... Be7 {[%clk 1:28:00]} 7. O-O {[%clk
1:22:14]} 7... O-O {[%clk 1:26:40]} 8. d4 {[%clk 1:19:01]} 8... cxd4 {[%clk
1:24:49]} 9. Nxd4 {[%clk 1:14:00]} 9... Qc7 {[%clk 1:23:33]} 10. Qd3 {[%clk
1:05:58]} 10... Nbd7 {[%clk 1:20:30]} 11. a4 {[%clk 1:01:40]} 11... b6 {[%clk
1:17:54]} 12. Rad1 {[%clk 0:58:27]} 12... Bb7 {[%clk 1:16:02]} 13. Bf3 {[%clk
0:49:44]} 13... Rac8 {[%clk 1:10:33]} 14. Nde2 {[%clk 0:37:22]} 14... Ne5 {[%clk
1:05:27]} 15. Qe3 {[%clk 0:36:48]} 15... Nxf3+ {[%clk 1:04:50]} 16. Qxf3 {[%clk
0:37:15]} 16... d5 {[%clk 0:53:22]} 17. exd5 {[%clk 0:32:46]} 17... Nxd5 {[%clk
0:52:29]} 18. Nxd5 {[%clk 0:29:18]} 18... Bxd5 {[%clk 0:49:59]} 19. Qg4 {[%clk
0:28:04]} 19... f6 {[%clk 0:44:16]} 20. c4 {[%clk 0:27:55]} 20... Bc6 {[%clk
0:39:32]} 21. Qxe6+ {[%clk 0:27:59]} 21... Kh8 {[%clk 0:39:43]} 22. Nd4 {[%clk
0:25:32]} 22... Ba8 {[%clk 0:37:57]} 23. Nf5 {[%clk 0:23:23]} 23... Qb7 {[%clk
0:36:58]} 24. Nh4 {[%clk 0:16:32]} 24... Rfd8 {[%clk 0:34:24]} 25. Rxd8+ {[%clk
0:14:16]} 25... Rxd8 {[%clk 0:34:41]} 26. Re1 {[%clk 0:13:22]} 26... Bf8 {[%clk
0:33:49]} 27. Ba3 {[%clk 0:09:41]} 27... Qb8 {[%clk 0:28:00]} 28. Bxf8 {[%clk
0:04:58]} 28... Rxf8 {[%clk 0:28:23]} 29. h3 {[%clk 0:05:08]} 29... Qf4 {[%clk
0:26:42]} 30. Qf7 {[%clk 0:03:55]} 30... Qd6 {[%clk 0:25:39]} 31. Re8 {[%clk
0:03:20]} 31... Qd1+ {[%clk 0:25:53]} 32. Kh2 {[%clk 0:03:49]} 32... Qd6+ {[%clk
0:25:44]} 33. g3 {[%clk 0:04:15]} 33... h6 {[%clk 0:25:23]} 34. Rxf8+ {[%clk
0:04:26]} 34... Qxf8 {[%clk 0:25:41]} 35. Ng6+ {[%clk 0:04:42]} 35... Kh7 {[%clk
0:24:55]} 36. Nxf8+ {[%clk 0:05:09]} 36... Kh8 {[%clk 0:24:58]} 37. Ng6+ {[%clk
0:05:33]} 37... Kh7 {[%clk 0:25:16]} 38. Ne7 {[%clk 0:06:00]} 38... Bd5 {[%clk
0:25:23]} 39. cxd5 {[%clk 0:06:27]} 39... b5 {[%clk 0:25:41]} 40. Qg8# {[%clk
0:06:53]} 1-0

[Variant "Standard"]
[Site "Europe Echecs"]

[Event "Championnat du monde jeunes U10F"]
[Date "2024.11.15"]
[White "Pham Nhu Y"]
[Black "Billod-Laillet, Camille"]
[WhiteElo "1545"]
[BlackElo "1732"]
[Round "1.10"]
[Result "1/2-1/2"]
[TimeControl "5400+30"]

1. d4 {[%clk 1:30:51]} 1... d5 {[%clk 1:30:54]} 2. Nf3 {[%clk 1:29:42]} 2... Nf6
{[%clk 1:31:10]} 3. c4 {[%clk 1:29:29]} 3... c6 {[%clk 1:30:32]} 4. Nc3 {[%clk
1:27:28]} 4... Bf5 {[%clk 1:22:11]} 5. Bf4 {[%clk 1:20:45]} 5... e6 {[%clk
1:18:23]} 6. e3 {[%clk 1:17:20]} 6... Nbd7 {[%clk 1:15:40]} 7. h3 {[%clk
1:13:43]} 7... h5 {[%clk 1:07:09]} 8. Rc1 {[%clk 1:08:17]} 8... Ne4 {[%clk
1:00:12]} 9. h4 {[%clk 0:47:08]} 9... Nxc3 {[%clk 0:57:08]} 10. Qb3 Ne4 {[%clk
0:52:35]} 11. Qxb7 {[%clk 0:22:26]} 11... Qc8 {[%clk 0:50:01]} 12. Qxc8+ {[%clk
0:22:43]} 12... Rxc8 {[%clk 0:49:29]} 13. c5 {[%clk 0:14:40]} 13... Nb8 {[%clk
0:44:10]} 14. b4 {[%clk 0:11:44]} 14... f6 {[%clk 0:30:05]} 15. a4 {[%clk
0:09:08]} 15... a6 {[%clk 0:28:47]} 16. b5 {[%clk 0:08:36]} 16... axb5 {[%clk
0:24:26]} 17. axb5 {[%clk 0:08:01]} 17... cxb5 {[%clk 0:23:32]} 18. Bxb5+ {[%clk
0:07:55]} 18... Nd7 {[%clk 0:18:14]} 19. c6 {[%clk 0:06:10]} 19... Bb4+ {[%clk
0:15:38]} 20. Kf1 {[%clk 0:05:04]} 1/2-1/2

[Variant "Standard"]
[Site "Europe Echecs"]

[Event "Championnat du monde jeunes U10F"]
[Date "2024.11.15"]
[White "Nguyen, Lam Vy Le"]
[Black "Mence, Jasmina"]
[WhiteElo "1728"]
[BlackElo "1542"]
[Round "1.11"]
[Result "1-0"]
[TimeControl "5400+30"]

1. e4 e5 2. Nf3 Nc6 3. Bc4 Nf6 4. d3 Bc5 5. c3 a6 6. Nbd2 d6 7. h3 Ba7 8. Bb3
Qe7 9. Nf1 Be6 10. Ng3 d5 11. Bg5 d4 12. Nh5 Rg8 13. Ba4 h6 14. Bxf6 gxf6 15. g4
b5 16. Bc2 Rg6 17. Qd2 Qc5 18. Rf1 O-O-O 19. a4 b4 20. c4 Bb6 21. Nh4 Rg5 22. b3
Qe7 23. Ke2 a5 24. f4 Rgg8 25. Ng3 Qd6 26. Nhf5 Bxf5 27. Nxf5 Qf8 28. Rf2 Ne7
29. fxe5 fxe5 30. Nxh6 Rg7 31. Raf1 Qe8 32. Nxf7 Rd7 33. Nxe5 Rd6 34. Rf8 1-0

[Variant "Standard"]
[Site "Europe Echecs"]